Workbook

Sheet Sheet1
A1: Date | B1: h | C1: m | D1: s | E1: T( C ) | F1: Humid(%) | G1: DP ( C ) | H1: Press | K1: Date | L1: Temp | M1: Humid | N1: DP | O1: Press
A2: 120101 | B2: 0 | C2: 0 | D2: 2 | E2: 11 | F2: 51 | G2: 1.4 | H2: 911.8 | K2: 2012-01-01 | L2: =AVERAGE(E2:E721) -> 9.52625 | M2: =AVERAGE(F2:F721) -> 58.20555556 | N2: 1.678333333 | O2: 911.1945833
A3: 120101 | B3: 0 | C3: 0 | D3: 7 | E3: 11 | F3: 51 | G3: 1.3 | H3: 911.8 | K3: =K2+0.04166667 -> 2012-01-01T01:00:00 | L3: =AVERAGE(E722:E1441) -> 8.175416667 | M3: =AVERAGE(F722:F1441) -> 63.70694444 | N3: 1.727777778 | O3: 914.0515278
A4: 120101 | B4: 0 | C4: 0 | D4: 12 | E4: 11 | F4: 51 | G4: 1.3 | H4: 911.8 | K4: =K3+0.04166667 -> 2012-01-01T02:00:00.001 | L4: =AVERAGE(E1442:E2161) -> 8.273194444 | M4: =AVERAGE(F1442:F2161) -> 62.17777778 | N4: 1.48125 | O4: 914.2102778
A5: 120101 | B5: 0 | C5: 0 | D5: 17 | E5: 11 | F5: 51 | G5: 1.4 | H5: 911.7 | K5: 2012-01-01T03:00:00.001 | L5: =AVERAGE(E2162:E2881) -> 7.371666667 | M5: =AVERAGE(F2162:F2881) -> 64.16111111 | N5: 1.057638889 | O5: 911.5520833
A6: 120101 | B6: 0 | C6: 0 | D6: 22 | E6: 11 | F6: 51 | G6: 1.4 | H6: 911.7 | K6: 2012-01-01T04:00:00.001 | L6: =AVERAGE(E2882:E3601) -> 7.285972222 | M6: =AVERAGE(F2882:F3601) -> 63.29444444 | N6: 0.7875 | O6: 910.9690278
A7: 120101 | B7: 0 | C7: 0 | D7: 27 | E7: 10.9 | F7: 52 | G7: 1.3 | H7: 911.7 | K7: 2012-01-01T05:00:00.001 | L7: =AVERAGE(E3601:E4321) -> 7.56518724 | M7: =AVERAGE(F3601:F4321) -> 61.4479889 | N7: 0.6280166436 | O7: 916.9271845
A8: 120101 | B8: 0 | C8: 0 | D8: 32 | E8: 10.9 | F8: 52 | G8: 1.3 | H8: 911.7 | K8: 2012-01-01T06:00:00.002 | L8: =AVERAGE(E4322:E5041) -> 7.162777778 | M8: =AVERAGE(F4322:F5041) -> 63.23194444 | N8: 0.6398611111 | O8: 916.0038889
A9: 120101 | B9: 0 | C9: 0 | D9: 37 | E9: 10.9 | F9: 52 | G9: 1.4 | H9: 911.6 | K9: 2012-01-01T07:00:00.002 | L9: =AVERAGE(E5042:E5761) -> 7.720833333 | M9: =AVERAGE(F5042:F5761) -> 57.87916667 | N9: -0.06097222222 | O9: 918.95125
A10: 120101 | B10: 0 | C10: 0 | D10: 43 | E10: 10.9 | F10: 52 | G10: 1.3 | H10: 911.6 | K10: 2012-01-01T08:00:00.002 | L10: =AVERAGE(E5762:E6481) -> 9.098194444 | M10: =AVERAGE(F5762:F6481) -> 52.82222222 | N10: -0.09291666667 | O10: 919.4868056
A11: 120101 | B11: 0 | C11: 0 | D11: 47 | E11: 10.9 | F11: 52 | G11: 1.4 | H11: 911.6 | K11: 2012-01-01T09:00:00.003 | L11: =AVERAGE(E6482:E7201) -> 16.42708333 | M11: =AVERAGE(F6482:F7201) -> 29.70138889 | N11: -1.405833333 | O11: 917.9791667
A12: 120101 | B12: 0 | C12: 0 | D12: 52 | E12: 10.9 | F12: 52 | G12: 1.3 | H12: 911.6 | K12: 2012-01-01T10:00:00.003 | L12: =AVERAGE(E7202:E7921) -> 20.2475 | M12: =AVERAGE(F7202:F7921) -> 23.21666667 | N12: -1.415555556 | O12: 917.5951389
A13: 120101 | B13: 0 | C13: 0 | D13: 57 | E13: 10.9 | F13: 52 | G13: 1.3 | H13: 911.6 | K13: 2012-01-01T11:00:00.003 | L13: =AVERAGE(E7922:E8641) -> 22.92916667 | M13: =AVERAGE(F7922:F8641) -> 18.64583333 | N13: -2.227222222 | O13: 916.9933333
A14: 120101 | B14: 0 | C14: 1 | D14: 2 | E14: 10.9 | F14: 52 | G14: 1.4 | H14: 911.5 | K14: 2012-01-01T12:00:00.003 | L14: =AVERAGE(E8642:E9361) -> 24.74527778 | M14: =AVERAGE(F8642:F9361) -> 14.78333333 | N14: -3.819583333 | O14: 917.7744444
A15: 120101 | B15: 0 | C15: 1 | D15: 7 | E15: 10.9 | F15: 52 | G15: 1.4 | H15: 911.6 | K15: 2012-01-01T13:00:00.004 | L15: =AVERAGE(E9362:E10081) -> 25.72694444 | M15: =AVERAGE(F9362:F10081) -> 13.30972222 | N15: -4.299722222 | O15: 918.3538889
A16: 120101 | B16: 0 | C16: 1 | D16: 12 | E16: 10.9 | F16: 52 | G16: 1.4 | H16: 911.6 | K16: 2012-01-01T14:00:00.004 | L16: =AVERAGE(E10082:E10801) -> 26.24013889 | M16: =AVERAGE(F10082:F10801) -> 13.24027778 | N16: -3.974722222 | O16: 918.2179167
A17: 120101 | B17: 0 | C17: 1 | D17: 17 | E17: 10.8 | F17: 52 | G17: 1.3 | H17: 911.6 | K17: 2012-01-01T15:00:00.004 | L17: =AVERAGE(E10802:E11521) -> 26.28861111 | M17: =AVERAGE(F10802:F11521) -> 13.26111111 | N17: -3.97875 | O17: 913.0786111
A18: 120101 | B18: 0 | C18: 1 | D18: 22 | E18: 10.9 | F18: 52 | G18: 1.5 | H18: 911.5 | K18: 2012-01-01T16:00:00.005 | L18: =AVERAGE(E11522:E12241) -> 25.455 | M18: =AVERAGE(F11522:F12241) -> 14.63611111 | N18: -3.394722222 | O18: 913.3916667
A19: 120101 | B19: 0 | C19: 1 | D19: 27 | E19: 10.8 | F19: 52 | G19: 1.3 | H19: 911.5 | K19: 2012-01-01T17:00:00.005 | L19: =AVERAGE(E12242:E12961) -> 23.51347222 | M19: =AVERAGE(F12242:F12961) -> 16.92638889 | N19: -2.998055556 | O19: 912.1359722
A20: 120101 | B20: 0 | C20: 1 | D20: 32 | E20: 10.8 | F20: 52 | G20: 1.4 | H20: 911.4 | K20: 2012-01-01T18:00:00.005 | L20: =AVERAGE(E12962:E13681) -> 21.86694444 | M20: =AVERAGE(F12962:F13681) -> 17.9 | N20: -3.599027778 | O20: 911.6309722
A21: 120101 | B21: 0 | C21: 1 | D21: 37 | E21: 10.8 | F21: 52 | G21: 1.4 | H21: 911.4 | K21: 2012-01-01T19:00:00.005 | L21: =AVERAGE(E13682:E14401) -> 19.41208333 | M21: =AVERAGE(F13682:F14401) -> 20.64583333 | N21: -3.710555556 | O21: 912.2838889
A22: 120101 | B22: 0 | C22: 1 | D22: 42 | E22: 10.8 | F22: 52 | G22: 1.4 | H22: 911.3 | K22: 2012-01-01T20:00:00.006 | L22: =AVERAGE(E14402:E15121) -> 17.33138889 | M22: =AVERAGE(F14402:F15121) -> 24.5 | N22: -3.164305556 | O22: 913.2176389
A23: 120101 | B23: 0 | C23: 1 | D23: 47 | E23: 10.8 | F23: 52 | G23: 1.4 | H23: 911.3 | K23: 2012-01-01T21:00:00.006 | L23: =AVERAGE(E15122:E15841) -> 16.27472222 | M23: =AVERAGE(F15122:F15841) -> 25.85555556 | N23: -3.390972222 | O23: 913.0738889
A24: 120101 | B24: 0 | C24: 1 | D24: 52 | E24: 10.8 | F24: 52 | G24: 1.4 | H24: 911.3 | K24: 2012-01-01T22:00:00.006 | L24: =AVERAGE(E15842:E16561) -> 16.06305556 | M24: =AVERAGE(F15842:F16561) -> 25.21111111 | N24: -3.864722222 | O24: 912.3736111
A25: 120101 | B25: 0 | C25: 1 | D25: 57 | E25: 10.8 | F25: 53 | G25: 1.5 | H25: 911.3 | K25: 2012-01-01T23:00:00.007 | L25: =AVERAGE(E16562:E17281) -> 16.16958333 | M25: =AVERAGE(F16562:F17281) -> 24.25138889 | N25: -4.22375 | O25: 912.4656944
A26: 120101 | B26: 0 | C26: 2 | D26: 2 | E26: 10.8 | F26: 53 | G26: 1.5 | H26: 911.2
A27: 120101 | B27: 0 | C27: 2 | D27: 7 | E27: 10.6 | F27: 53 | G27: 1.4 | H27: 911.2
A28: 120101 | B28: 0 | C28: 2 | D28: 12 | E28: 10.6 | F28: 53 | G28: 1.4 | H28: 911.1
A29: 120101 | B29: 0 | C29: 2 | D29: 17 | E29: 10.6 | F29: 53 | G29: 1.4 | H29: 911.1
A30: 120101 | B30: 0 | C30: 2 | D30: 22 | E30: 10.6 | F30: 53 | G30: 1.5 | H30: 911
A31: 120101 | B31: 0 | C31: 2 | D31: 27 | E31: 10.6 | F31: 53 | G31: 1.4 | H31: 911
A32: 120101 | B32: 0 | C32: 2 | D32: 32 | E32: 10.5 | F32: 53 | G32: 1.3 | H32: 911
A33: 120101 | B33: 0 | C33: 2 | D33: 37 | E33: 10.5 | F33: 53 | G33: 1.3 | H33: 911
A34: 120101 | B34: 0 | C34: 2 | D34: 43 | E34: 10.5 | F34: 53 | G34: 1.4 | H34: 910.9
A35: 120101 | B35: 0 | C35: 2 | D35: 47 | E35: 10.5 | F35: 53 | G35: 1.4 | H35: 910.9
A36: 120101 | B36: 0 | C36: 2 | D36: 52 | E36: 10.5 | F36: 53 | G36: 1.4 | H36: 910.9
A37: 120101 | B37: 0 | C37: 2 | D37: 57 | E37: 10.5 | F37: 53 | G37: 1.5 | H37: 910.8
A38: 120101 | B38: 0 | C38: 3 | D38: 2 | E38: 10.5 | F38: 54 | G38: 1.5 | H38: 910.8
A39: 120101 | B39: 0 | C39: 3 | D39: 7 | E39: 10.4 | F39: 54 | G39: 1.4 | H39: 910.7
A40: 120101 | B40: 0 | C40: 3 | D40: 12 | E40: 10.4 | F40: 54 | G40: 1.4 | H40: 910.7
A41: 120101 | B41: 0 | C41: 3 | D41: 17 | E41: 10.4 | F41: 53 | G41: 1.3 | H41: 910.7
A42: 120101 | B42: 0 | C42: 3 | D42: 22 | E42: 10.4 | F42: 54 | G42: 1.4 | H42: 910.6
A43: 120101 | B43: 0 | C43: 3 | D43: 27 | E43: 10.5 | F43: 54 | G43: 1.5 | H43: 910.6
A44: 120101 | B44: 0 | C44: 3 | D44: 32 | E44: 10.4 | F44: 54 | G44: 1.4 | H44: 910.6
A45: 120101 | B45: 0 | C45: 3 | D45: 37 | E45: 10.4 | F45: 54 | G45: 1.4 | H45: 910.6
A46: 120101 | B46: 0 | C46: 3 | D46: 42 | E46: 10.4 | F46: 54 | G46: 1.4 | H46: 910.5
A47: 120101 | B47: 0 | C47: 3 | D47: 47 | E47: 10.4 | F47: 54 | G47: 1.4 | H47: 910.5
A48: 120101 | B48: 0 | C48: 3 | D48: 52 | E48: 10.4 | F48: 54 | G48: 1.4 | H48: 910.5
A49: 120101 | B49: 0 | C49: 3 | D49: 57 | E49: 10.4 | F49: 54 | G49: 1.4 | H49: 910.5
A50: 120101 | B50: 0 | C50: 4 | D50: 2 | E50: 10.4 | F50: 54 | G50: 1.5 | H50: 910.4
A51: 120101 | B51: 0 | C51: 4 | D51: 7 | E51: 10.4 | F51: 54 | G51: 1.5 | H51: 910.4
A52: 120101 | B52: 0 | C52: 4 | D52: 12 | E52: 10.4 | F52: 54 | G52: 1.5 | H52: 910.3
A53: 120101 | B53: 0 | C53: 4 | D53: 17 | E53: 10.4 | F53: 54 | G53: 1.4 | H53: 910.3
A54: 120101 | B54: 0 | C54: 4 | D54: 22 | E54: 10.5 | F54: 53 | G54: 1.4 | H54: 910.3
A55: 120101 | B55: 0 | C55: 4 | D55: 27 | E55: 10.4 | F55: 53 | G55: 1.3 | H55: 910.3
A56: 120101 | B56: 0 | C56: 4 | D56: 32 | E56: 10.4 | F56: 53 | G56: 1.3 | H56: 910.3
A57: 120101 | B57: 0 | C57: 4 | D57: 37 | E57: 10.4 | F57: 53 | G57: 1.3 | H57: 910.3
A58: 120101 | B58: 0 | C58: 4 | D58: 43 | E58: 10.4 | F58: 54 | G58: 1.4 | H58: 910.3
A59: 120101 | B59: 0 | C59: 4 | D59: 47 | E59: 10.4 | F59: 53 | G59: 1.3 | H59: 910.3
A60: 120101 | B60: 0 | C60: 4 | D60: 52 | E60: 10.4 | F60: 54 | G60: 1.4 | H60: 910.3
A61: 120101 | B61: 0 | C61: 4 | D61: 57 | E61: 10.4 | F61: 54 | G61: 1.4 | H61: 910.3
A62: 120101 | B62: 0 | C62: 5 | D62: 2 | E62: 10.4 | F62: 54 | G62: 1.4 | H62: 910.2
A63: 120101 | B63: 0 | C63: 5 | D63: 7 | E63: 10.4 | F63: 54 | G63: 1.5 | H63: 910.2
A64: 120101 | B64: 0 | C64: 5 | D64: 12 | E64: 10.4 | F64: 54 | G64: 1.5 | H64: 910.2
A65: 120101 | B65: 0 | C65: 5 | D65: 17 | E65: 10.3 | F65: 54 | G65: 1.4 | H65: 910.1
A66: 120101 | B66: 0 | C66: 5 | D66: 22 | E66: 10.4 | F66: 54 | G66: 1.5 | H66: 910.1
A67: 120101 | B67: 0 | C67: 5 | D67: 27 | E67: 10.3 | F67: 54 | G67: 1.4 | H67: 910.1
A68: 120101 | B68: 0 | C68: 5 | D68: 32 | E68: 10.3 | F68: 54 | G68: 1.5 | H68: 910
A69: 120101 | B69: 0 | C69: 5 | D69: 37 | E69: 10.3 | F69: 54 | G69: 1.5 | H69: 910
A70: 120101 | B70: 0 | C70: 5 | D70: 42 | E70: 10.3 | F70: 54 | G70: 1.5 | H70: 910
A71: 120101 | B71: 0 | C71: 5 | D71: 47 | E71: 10.3 | F71: 54 | G71: 1.5 | H71: 910
A72: 120101 | B72: 0 | C72: 5 | D72: 52 | E72: 10.3 | F72: 54 | G72: 1.5 | H72: 910
A73: 120101 | B73: 0 | C73: 5 | D73: 57 | E73: 10.3 | F73: 55 | G73: 1.5 | H73: 910
A74: 120101 | B74: 0 | C74: 6 | D74: 2 | E74: 10.3 | F74: 55 | G74: 1.6 | H74: 910
A75: 120101 | B75: 0 | C75: 6 | D75: 7 | E75: 10.3 | F75: 55 | G75: 1.5 | H75: 909.9
A76: 120101 | B76: 0 | C76: 6 | D76: 12 | E76: 10.3 | F76: 55 | G76: 1.5 | H76: 909.9
A77: 120101 | B77: 0 | C77: 6 | D77: 17 | E77: 10.3 | F77: 55 | G77: 1.6 | H77: 909.9
A78: 120101 | B78: 0 | C78: 6 | D78: 22 | E78: 10.3 | F78: 55 | G78: 1.6 | H78: 909.9
A79: 120101 | B79: 0 | C79: 6 | D79: 27 | E79: 10.3 | F79: 55 | G79: 1.6 | H79: 909.8
A80: 120101 | B80: 0 | C80: 6 | D80: 32 | E80: 10.3 | F80: 54 | G80: 1.5 | H80: 909.8
A81: 120101 | B81: 0 | C81: 6 | D81: 37 | E81: 10.3 | F81: 55 | G81: 1.5 | H81: 909.8
A82: 120101 | B82: 0 | C82: 6 | D82: 43 | E82: 10.3 | F82: 55 | G82: 1.6 | H82: 909.7
A83: 120101 | B83: 0 | C83: 6 | D83: 47 | E83: 10.3 | F83: 55 | G83: 1.5 | H83: 909.7
A84: 120101 | B84: 0 | C84: 6 | D84: 52 | E84: 10.3 | F84: 55 | G84: 1.6 | H84: 909.6
A85: 120101 | B85: 0 | C85: 6 | D85: 57 | E85: 10.1 | F85: 55 | G85: 1.5 | H85: 909.6
A86: 120101 | B86: 0 | C86: 7 | D86: 2 | E86: 10.1 | F86: 55 | G86: 1.4 | H86: 909.6
A87: 120101 | B87: 0 | C87: 7 | D87: 7 | E87: 10.1 | F87: 55 | G87: 1.5 | H87: 909.6
A88: 120101 | B88: 0 | C88: 7 | D88: 12 | E88: 10.1 | F88: 55 | G88: 1.4 | H88: 909.6
A89: 120101 | B89: 0 | C89: 7 | D89: 17 | E89: 10.1 | F89: 55 | G89: 1.4 | H89: 909.6
A90: 120101 | B90: 0 | C90: 7 | D90: 22 | E90: 10.1 | F90: 54 | G90: 1.4 | H90: 909.5
A91: 120101 | B91: 0 | C91: 7 | D91: 27 | E91: 10.1 | F91: 54 | G91: 1.3 | H91: 909.6
A92: 120101 | B92: 0 | C92: 7 | D92: 32 | E92: 10.3 | F92: 55 | G92: 1.5 | H92: 909.6
A93: 120101 | B93: 0 | C93: 7 | D93: 37 | E93: 10.3 | F93: 55 | G93: 1.6 | H93: 909.6
A94: 120101 | B94: 0 | C94: 7 | D94: 42 | E94: 10.3 | F94: 55 | G94: 1.5 | H94: 909.5
A95: 120101 | B95: 0 | C95: 7 | D95: 47 | E95: 10.3 | F95: 55 | G95: 1.6 | H95: 909.5
A96: 120101 | B96: 0 | C96: 7 | D96: 52 | E96: 10.3 | F96: 55 | G96: 1.6 | H96: 909.5
A97: 120101 | B97: 0 | C97: 7 | D97: 57 | E97: 10.3 | F97: 55 | G97: 1.6 | H97: 909.5
A98: 120101 | B98: 0 | C98: 8 | D98: 2 | E98: 10.3 | F98: 55 | G98: 1.6 | H98: 909.5
A99: 120101 | B99: 0 | C99: 8 | D99: 7 | E99: 10.3 | F99: 55 | G99: 1.5 | H99: 909.5
A100: 120101 | B100: 0 | C100: 8 | D100: 12 | E100: 10.3 | F100: 55 | G100: 1.5 | H100: 909.5
A101: 120101 | B101: 0 | C101: 8 | D101: 17 | E101: 10.3 | F101: 55 | G101: 1.5 | H101: 909.6
A102: 120101 | B102: 0 | C102: 8 | D102: 22 | E102: 10.3 | F102: 54 | G102: 1.5 | H102: 909.6
A103: 120101 | B103: 0 | C103: 8 | D103: 27 | E103: 10.3 | F103: 55 | G103: 1.5 | H103: 909.6
A104: 120101 | B104: 0 | C104: 8 | D104: 32 | E104: 10.3 | F104: 55 | G104: 1.5 | H104: 909.6
A105: 120101 | B105: 0 | C105: 8 | D105: 37 | E105: 10.3 | F105: 54 | G105: 1.3 | H105: 909.6
A106: 120101 | B106: 0 | C106: 8 | D106: 43 | E106: 10.3 | F106: 54 | G106: 1.3 | H106: 909.6
A107: 120101 | B107: 0 | C107: 8 | D107: 47 | E107: 10.4 | F107: 54 | G107: 1.4 | H107: 909.6
A108: 120101 | B108: 0 | C108: 8 | D108: 52 | E108: 10.4 | F108: 54 | G108: 1.5 | H108: 909.6
A109: 120101 | B109: 0 | C109: 8 | D109: 57 | E109: 10.4 | F109: 54 | G109: 1.5 | H109: 909.6
A110: 120101 | B110: 0 | C110: 9 | D110: 2 | E110: 10.4 | F110: 54 | G110: 1.4 | H110: 909.7
A111: 120101 | B111: 0 | C111: 9 | D111: 7 | E111: 10.4 | F111: 54 | G111: 1.4 | H111: 909.8
A112: 120101 | B112: 0 | C112: 9 | D112: 12 | E112: 10.4 | F112: 53 | G112: 1.2 | H112: 909.9
A113: 120101 | B113: 0 | C113: 9 | D113: 17 | E113: 10.4 | F113: 53 | G113: 1.2 | H113: 910
A114: 120101 | B114: 0 | C114: 9 | D114: 22 | E114: 10.4 | F114: 53 | G114: 1.2 | H114: 910
A115: 120101 | B115: 0 | C115: 9 | D115: 27 | E115: 10.4 | F115: 53 | G115: 1.3 | H115: 910
A116: 120101 | B116: 0 | C116: 9 | D116: 32 | E116: 10.4 | F116: 53 | G116: 1.3 | H116: 910
A117: 120101 | B117: 0 | C117: 9 | D117: 37 | E117: 10.4 | F117: 53 | G117: 1.3 | H117: 910
A118: 120101 | B118: 0 | C118: 9 | D118: 42 | E118: 10.4 | F118: 53 | G118: 1.3 | H118: 910
A119: 120101 | B119: 0 | C119: 9 | D119: 47 | E119: 10.4 | F119: 53 | G119: 1.3 | H119: 910.1
A120: 120101 | B120: 0 | C120: 9 | D120: 52 | E120: 10.4 | F120: 54 | G120: 1.4 | H120: 910.1
A121: 120101 | B121: 0 | C121: 9 | D121: 57 | E121: 10.4 | F121: 54 | G121: 1.4 | H121: 910.2
A122: 120101 | B122: 0 | C122: 10 | D122: 2 | E122: 10.4 | F122: 54 | G122: 1.4 | H122: 910.2
A123: 120101 | B123: 0 | C123: 10 | D123: 7 | E123: 10.4 | F123: 54 | G123: 1.5 | H123: 910.2
A124: 120101 | B124: 0 | C124: 10 | D124: 12 | E124: 10.4 | F124: 54 | G124: 1.4 | H124: 910.1
A125: 120101 | B125: 0 | C125: 10 | D125: 17 | E125: 10.4 | F125: 54 | G125: 1.4 | H125: 910.2
A126: 120101 | B126: 0 | C126: 10 | D126: 22 | E126: 10.4 | F126: 53 | G126: 1.3 | H126: 910.2
A127: 120101 | B127: 0 | C127: 10 | D127: 27 | E127: 10.4 | F127: 53 | G127: 1.3 | H127: 910.2
A128: 120101 | B128: 0 | C128: 10 | D128: 32 | E128: 10.4 | F128: 53 | G128: 1.3 | H128: 910.2
A129: 120101 | B129: 0 | C129: 10 | D129: 37 | E129: 10.4 | F129: 54 | G129: 1.4 | H129: 910.2
A130: 120101 | B130: 0 | C130: 10 | D130: 43 | E130: 10.4 | F130: 54 | G130: 1.5 | H130: 910.2
A131: 120101 | B131: 0 | C131: 10 | D131: 47 | E131: 10.4 | F131: 54 | G131: 1.5 | H131: 910.2
A132: 120101 | B132: 0 | C132: 10 | D132: 52 | E132: 10.4 | F132: 54 | G132: 1.5 | H132: 910.3
A133: 120101 | B133: 0 | C133: 10 | D133: 57 | E133: 10.4 | F133: 54 | G133: 1.4 | H133: 910.2
A134: 120101 | B134: 0 | C134: 11 | D134: 3 | E134: 10.4 | F134: 54 | G134: 1.4 | H134: 910.3
A135: 120101 | B135: 0 | C135: 11 | D135: 7 | E135: 10.4 | F135: 54 | G135: 1.5 | H135: 910.2
A136: 120101 | B136: 0 | C136: 11 | D136: 12 | E136: 10.4 | F136: 54 | G136: 1.5 | H136: 910.3
A137: 120101 | B137: 0 | C137: 11 | D137: 17 | E137: 10.4 | F137: 54 | G137: 1.4 | H137: 910.2
A138: 120101 | B138: 0 | C138: 11 | D138: 22 | E138: 10.4 | F138: 54 | G138: 1.5 | H138: 910.3
A139: 120101 | B139: 0 | C139: 11 | D139: 27 | E139: 10.4 | F139: 54 | G139: 1.5 | H139: 910.2
A140: 120101 | B140: 0 | C140: 11 | D140: 32 | E140: 10.4 | F140: 54 | G140: 1.5 | H140: 910.3
A141: 120101 | B141: 0 | C141: 11 | D141: 37 | E141: 10.4 | F141: 54 | G141: 1.4 | H141: 910.3
A142: 120101 | B142: 0 | C142: 11 | D142: 42 | E142: 10.4 | F142: 53 | G142: 1.3 | H142: 910.3
A143: 120101 | B143: 0 | C143: 11 | D143: 47 | E143: 10.4 | F143: 53 | G143: 1.3 | H143: 910.3
A144: 120101 | B144: 0 | C144: 11 | D144: 52 | E144: 10.5 | F144: 54 | G144: 1.5 | H144: 910.3
A145: 120101 | B145: 0 | C145: 11 | D145: 57 | E145: 10.5 | F145: 54 | G145: 1.5 | H145: 910.3
A146: 120101 | B146: 0 | C146: 12 | D146: 2 | E146: 10.5 | F146: 54 | G146: 1.6 | H146: 910.3
A147: 120101 | B147: 0 | C147: 12 | D147: 7 | E147: 10.5 | F147: 54 | G147: 1.6 | H147: 910.3
A148: 120101 | B148: 0 | C148: 12 | D148: 12 | E148: 10.5 | F148: 53 | G148: 1.4 | H148: 910.3
A149: 120101 | B149: 0 | C149: 12 | D149: 17 | E149: 10.5 | F149: 53 | G149: 1.5 | H149: 910.3
A150: 120101 | B150: 0 | C150: 12 | D150: 22 | E150: 10.4 | F150: 54 | G150: 1.4 | H150: 910.3
A151: 120101 | B151: 0 | C151: 12 | D151: 27 | E151: 10.5 | F151: 54 | G151: 1.6 | H151: 910.3
A152: 120101 | B152: 0 | C152: 12 | D152: 32 | E152: 10.4 | F152: 54 | G152: 1.5 | H152: 910.3
A153: 120101 | B153: 0 | C153: 12 | D153: 37 | E153: 10.4 | F153: 54 | G153: 1.5 | H153: 910.2
A154: 120101 | B154: 0 | C154: 12 | D154: 43 | E154: 10.4 | F154: 54 | G154: 1.5 | H154: 910.2
A155: 120101 | B155: 0 | C155: 12 | D155: 47 | E155: 10.4 | F155: 54 | G155: 1.5 | H155: 910.1
A156: 120101 | B156: 0 | C156: 12 | D156: 52 | E156: 10.4 | F156: 54 | G156: 1.5 | H156: 910.1
A157: 120101 | B157: 0 | C157: 12 | D157: 57 | E157: 10.4 | F157: 54 | G157: 1.5 | H157: 910.1
A158: 120101 | B158: 0 | C158: 13 | D158: 2 | E158: 10.4 | F158: 54 | G158: 1.4 | H158: 910.1
A159: 120101 | B159: 0 | C159: 13 | D159: 7 | E159: 10.4 | F159: 53 | G159: 1.3 | H159: 910.1
A160: 120101 | B160: 0 | C160: 13 | D160: 12 | E160: 10.4 | F160: 54 | G160: 1.4 | H160: 910.1
A161: 120101 | B161: 0 | C161: 13 | D161: 17 | E161: 10.4 | F161: 54 | G161: 1.4 | H161: 910.1
A162: 120101 | B162: 0 | C162: 13 | D162: 22 | E162: 10.4 | F162: 54 | G162: 1.4 | H162: 910.1
A163: 120101 | B163: 0 | C163: 13 | D163: 27 | E163: 10.4 | F163: 54 | G163: 1.4 | H163: 910.1
A164: 120101 | B164: 0 | C164: 13 | D164: 32 | E164: 10.4 | F164: 54 | G164: 1.5 | H164: 910.1
A165: 120101 | B165: 0 | C165: 13 | D165: 37 | E165: 10.4 | F165: 54 | G165: 1.5 | H165: 910.1
A166: 120101 | B166: 0 | C166: 13 | D166: 42 | E166: 10.4 | F166: 54 | G166: 1.5 | H166: 910.1
A167: 120101 | B167: 0 | C167: 13 | D167: 47 | E167: 10.4 | F167: 54 | G167: 1.5 | H167: 910.1
A168: 120101 | B168: 0 | C168: 13 | D168: 52 | E168: 10.4 | F168: 54 | G168: 1.5 | H168: 910
A169: 120101 | B169: 0 | C169: 13 | D169: 57 | E169: 10.4 | F169: 54 | G169: 1.5 | H169: 910
A170: 120101 | B170: 0 | C170: 14 | D170: 2 | E170: 10.4 | F170: 54 | G170: 1.6 | H170: 910
A171: 120101 | B171: 0 | C171: 14 | D171: 7 | E171: 10.3 | F171: 55 | G171: 1.5 | H171: 910
A172: 120101 | B172: 0 | C172: 14 | D172: 12 | E172: 10.3 | F172: 55 | G172: 1.5 | H172: 910
A173: 120101 | B173: 0 | C173: 14 | D173: 17 | E173: 10.3 | F173: 55 | G173: 1.5 | H173: 909.9
A174: 120101 | B174: 0 | C174: 14 | D174: 22 | E174: 10.3 | F174: 55 | G174: 1.6 | H174: 909.9
A175: 120101 | B175: 0 | C175: 14 | D175: 27 | E175: 10.3 | F175: 55 | G175: 1.5 | H175: 909.8
A176: 120101 | B176: 0 | C176: 14 | D176: 32 | E176: 10.3 | F176: 55 | G176: 1.5 | H176: 909.8
A177: 120101 | B177: 0 | C177: 14 | D177: 37 | E177: 10.3 | F177: 55 | G177: 1.5 | H177: 909.8
A178: 120101 | B178: 0 | C178: 14 | D178: 43 | E178: 10.3 | F178: 54 | G178: 1.5 | H178: 909.8
A179: 120101 | B179: 0 | C179: 14 | D179: 47 | E179: 10.3 | F179: 54 | G179: 1.4 | H179: 909.8
A180: 120101 | B180: 0 | C180: 14 | D180: 52 | E180: 10.3 | F180: 54 | G180: 1.5 | H180: 909.8
A181: 120101 | B181: 0 | C181: 14 | D181: 57 | E181: 10.3 | F181: 54 | G181: 1.5 | H181: 909.7
A182: 120101 | B182: 0 | C182: 15 | D182: 2 | E182: 10.3 | F182: 55 | G182: 1.5 | H182: 909.7
A183: 120101 | B183: 0 | C183: 15 | D183: 7 | E183: 10.3 | F183: 55 | G183: 1.5 | H183: 909.7
A184: 120101 | B184: 0 | C184: 15 | D184: 12 | E184: 10.3 | F184: 54 | G184: 1.5 | H184: 909.8
A185: 120101 | B185: 0 | C185: 15 | D185: 17 | E185: 10.3 | F185: 54 | G185: 1.5 | H185: 909.7
A186: 120101 | B186: 0 | C186: 15 | D186: 22 | E186: 10.3 | F186: 54 | G186: 1.5 | H186: 909.7
A187: 120101 | B187: 0 | C187: 15 | D187: 27 | E187: 10.3 | F187: 55 | G187: 1.6 | H187: 909.7
A188: 120101 | B188: 0 | C188: 15 | D188: 32 | E188: 10.3 | F188: 55 | G188: 1.6 | H188: 909.8
A189: 120101 | B189: 0 | C189: 15 | D189: 37 | E189: 10.3 | F189: 54 | G189: 1.5 | H189: 909.8
A190: 120101 | B190: 0 | C190: 15 | D190: 42 | E190: 10.3 | F190: 54 | G190: 1.4 | H190: 909.8
A191: 120101 | B191: 0 | C191: 15 | D191: 47 | E191: 10.3 | F191: 55 | G191: 1.6 | H191: 909.8
A192: 120101 | B192: 0 | C192: 15 | D192: 52 | E192: 10.3 | F192: 55 | G192: 1.5 | H192: 909.8
A193: 120101 | B193: 0 | C193: 15 | D193: 57 | E193: 10.3 | F193: 55 | G193: 1.6 | H193: 909.8
A194: 120101 | B194: 0 | C194: 16 | D194: 2 | E194: 10.3 | F194: 55 | G194: 1.6 | H194: 909.8
A195: 120101 | B195: 0 | C195: 16 | D195: 7 | E195: 10.3 | F195: 55 | G195: 1.5 | H195: 909.9
A196: 120101 | B196: 0 | C196: 16 | D196: 12 | E196: 10.3 | F196: 55 | G196: 1.5 | H196: 909.8
A197: 120101 | B197: 0 | C197: 16 | D197: 17 | E197: 10.3 | F197: 55 | G197: 1.5 | H197: 909.8
A198: 120101 | B198: 0 | C198: 16 | D198: 22 | E198: 10.3 | F198: 55 | G198: 1.6 | H198: 909.8
A199: 120101 | B199: 0 | C199: 16 | D199: 27 | E199: 10.3 | F199: 55 | G199: 1.6 | H199: 909.8
A200: 120101 | B200: 0 | C200: 16 | D200: 32 | E200: 10.3 | F200: 55 | G200: 1.6 | H200: 909.8
... 4300 more rows

Sheet Sheet2

Sheet Sheet3
